[Event "*** Titled Tuesday Blitz"]
[Site "Chess.com"]
[Date "2020.04.21"]
[Round "4"]
[White "GMHess"]
[Black "praveenb2002"]
[Result "1-0"]
[WhiteElo "2877"]
[BlackElo "2716"]
[TimeControl "180+1"]
[EndTime "10:40:38 PDT"]
[Termination "GMHess won by resignation"]

1. d4 {[%clk 0:03:00.9]} 1... d5 {[%clk 0:02:58.8]} 2. Nf3 {[%clk 0:03:00.8]}
2... Nf6 {[%clk 0:02:58.7]} 3. Nc3 {[%clk 0:03:01.1]} 3... e6 {[%clk 0:02:56.8]}
4. Bg5 {[%clk 0:03:01.2]} 4... c5 {[%clk 0:02:55]} 5. e4 {[%clk 0:02:55.2]} 5...
dxe4 {[%clk 0:02:38.3]} 6. Nxe4 {[%clk 0:02:51.4]} 6... Be7 {[%clk 0:02:37.6]}
7. Bxf6 {[%clk 0:02:49]} 7... Bxf6 {[%clk 0:02:00.6]} 8. Nxc5 {[%clk 0:02:43.6]}
8... Nc6 {[%clk 0:01:59.9]} 9. c3 {[%clk 0:02:42]} 9... O-O {[%clk 0:01:56.8]}
10. Bd3 {[%clk 0:02:33.6]} 10... e5 {[%clk 0:01:53.9]} 11. d5 {[%clk 0:02:33.7]}
11... Nb8 {[%clk 0:01:16]} 12. Ne4 {[%clk 0:02:22.9]} 12... Bg4 {[%clk
0:01:12.1]} 13. h3 {[%clk 0:02:18.2]} 13... Bh5 {[%clk 0:01:11.2]} 14. Ng3
{[%clk 0:02:01.3]} 14... Bg6 {[%clk 0:01:08.3]} 15. Bxg6 {[%clk 0:02:00.8]}
15... hxg6 {[%clk 0:01:09.2]} 16. Ne4 {[%clk 0:01:51.9]} 16... Nd7 {[%clk
0:01:07.7]} 17. Qb3 {[%clk 0:01:47.4]} 17... Qc7 {[%clk 0:00:58.8]} 18. O-O-O
{[%clk 0:01:44.6]} 18... Nc5 {[%clk 0:00:51.8]} 19. Qc4 {[%clk 0:01:34.4]} 19...
Rac8 {[%clk 0:00:50]} 20. Qxc5 {[%clk 0:01:27.3]} 20... Qxc5 {[%clk 0:00:48.9]}
21. Nxc5 {[%clk 0:01:28.2]} 21... Rxc5 {[%clk 0:00:49.8]} 22. Rhe1 {[%clk
0:01:28.5]} 22... Rd8 {[%clk 0:00:43.8]} 23. Nxe5 {[%clk 0:01:21.3]} 23... Rcxd5
{[%clk 0:00:38.1]} 24. Rxd5 {[%clk 0:01:15.8]} 24... Rxd5 {[%clk 0:00:39]} 25.
Nf3 {[%clk 0:01:13]} 25... Kf8 {[%clk 0:00:37.1]} 26. Rd1 {[%clk 0:01:09.1]}
26... Rb5 {[%clk 0:00:33.1]} 27. Kc2 {[%clk 0:00:59.8]} 27... Ke7 {[%clk
0:00:32.2]} 28. a4 {[%clk 0:00:59.6]} 28... Rf5 {[%clk 0:00:29.9]} 29. b4 {[%clk
0:00:51.7]} 29... a6 {[%clk 0:00:26.8]} 30. Rd3 {[%clk 0:00:50.4]} 30... Ke8
{[%clk 0:00:20.3]} 31. Re3+ {[%clk 0:00:48.9]} 31... Kd7 {[%clk 0:00:19.6]} 32.
Re2 {[%clk 0:00:49.5]} 32... Kd8 {[%clk 0:00:15.5]} 33. Nd2 {[%clk 0:00:48.8]}
33... Rd5 {[%clk 0:00:14.6]} 34. Nc4 {[%clk 0:00:42.7]} 34... Kc7 {[%clk
0:00:13.8]} 35. a5 {[%clk 0:00:40.4]} 35... Rf5 {[%clk 0:00:11.1]} 36. Nb6
{[%clk 0:00:36.1]} 36... Kc6 {[%clk 0:00:07.3]} 37. Kb3 {[%clk 0:00:34.4]} 37...
Kc7 {[%clk 0:00:06.6]} 38. c4 {[%clk 0:00:31]} 38... Kc6 {[%clk 0:00:07.1]} 39.
Nd5 {[%clk 0:00:30.7]} 39... Kd7 {[%clk 0:00:05.6]} 40. f4 {[%clk 0:00:29.2]}
40... g5 {[%clk 0:00:03.8]} 41. g4 {[%clk 0:00:28.3]} 41... Rxf4 {[%clk
0:00:03.5]} 42. Nxf4 {[%clk 0:00:27.4]} 42... gxf4 {[%clk 0:00:04.4]} 43. Rf2
{[%clk 0:00:20.6]} 43... g5 {[%clk 0:00:04.6]} 44. Kc2 {[%clk 0:00:20.3]} 44...
Kc6 {[%clk 0:00:04.1]} 45. Kd3 {[%clk 0:00:20.4]} 45... Be7 {[%clk 0:00:04.6]}
46. Rb2 {[%clk 0:00:20]} 46... Bf6 {[%clk 0:00:04.5]} 47. Rb1 {[%clk 0:00:19.4]}
47... Kd6 {[%clk 0:00:04.4]} 48. Ke4 {[%clk 0:00:19.7]} 48... Ke6 {[%clk
0:00:04.9]} 49. b5 {[%clk 0:00:19.7]} 49... axb5 {[%clk 0:00:03.9]} 50. Rxb5
{[%clk 0:00:18.8]} 50... Bc3 {[%clk 0:00:04.4]} 51. Rb6+ {[%clk 0:00:16.4]}
51... Kd7 {[%clk 0:00:04.2]} 52. Rxb7+ {[%clk 0:00:17]} 52... Ke6 {[%clk
0:00:04.7]} 53. a6 {[%clk 0:00:17]} 1-0

[Event "*** Titled Tuesday Blitz"]
[Site "Chess.com"]
[Date "2020.04.21"]
[Round "4"]
[White "quesfr"]
[Black "RubensCezila"]
[Result "0-1"]
[WhiteElo "2197"]
[BlackElo "2432"]
[TimeControl "180+1"]
[EndTime "10:40:38 PDT"]
[Termination "RubensCezila won on time"]

1. e4 {[%clk 0:03:00.9]} 1... c6 {[%clk 0:02:59.8]} 2. d4 {[%clk 0:03:00.6]}
2... d5 {[%clk 0:02:59.8]} 3. e5 {[%clk 0:03:01.2]} 3... Bf5 {[%clk 0:02:59.6]}
4. h4 {[%clk 0:03:01.2]} 4... h6 {[%clk 0:02:58.5]} 5. g4 {[%clk 0:02:59.9]}
5... Bd7 {[%clk 0:02:58.6]} 6. Bd3 {[%clk 0:02:51.9]} 6... e6 {[%clk 0:02:56.5]}
7. c3 {[%clk 0:02:49.2]} 7... c5 {[%clk 0:02:56.2]} 8. Be3 {[%clk 0:02:46.4]}
8... Nc6 {[%clk 0:02:53]} 9. Ne2 {[%clk 0:02:37.5]} 9... Qb6 {[%clk 0:02:45.6]}
10. b3 {[%clk 0:02:28.5]} 10... cxd4 {[%clk 0:02:44.5]} 11. cxd4 {[%clk
0:02:28.7]} 11... Nb4 {[%clk 0:02:43.4]} 12. Nbc3 {[%clk 0:02:12.3]} 12... Nxd3+
{[%clk 0:02:41.5]} 13. Qxd3 {[%clk 0:02:13.2]} 13... Rc8 {[%clk 0:02:21.5]} 14.
f4 {[%clk 0:02:10]} 14... h5 {[%clk 0:02:14.6]} 15. gxh5 {[%clk 0:01:52.1]}
15... Nh6 {[%clk 0:01:59.1]} 16. Kf2 {[%clk 0:01:45.2]} 16... Bb4 {[%clk
0:01:35.5]} 17. Rac1 {[%clk 0:01:42.9]} 17... Nf5 {[%clk 0:01:12.5]} 18. Ng3
{[%clk 0:01:37.9]} 18... Nxg3 {[%clk 0:01:08.7]} 19. Kxg3 {[%clk 0:01:38.8]}
19... Rxh5 {[%clk 0:01:07.6]} 20. Rc2 {[%clk 0:00:54.5]} 20... Qd8 {[%clk
0:00:58]} 21. Ne2 {[%clk 0:00:34.5]} 21... Rxc2 {[%clk 0:00:53.1]} 22. Qxc2
{[%clk 0:00:34.4]} 22... Be7 {[%clk 0:00:53.2]} 23. Bf2 {[%clk 0:00:19.5]} 23...
Rxh4 {[%clk 0:00:34.9]} 24. Rxh4 {[%clk 0:00:18.9]} 24... Bxh4+ {[%clk
0:00:35.8]} 25. Kf3 {[%clk 0:00:18.9]} 25... Bxf2 {[%clk 0:00:36.3]} 26. Kxf2
{[%clk 0:00:19]} 26... Qh4+ {[%clk 0:00:36.1]} 27. Ke3 {[%clk 0:00:17.9]} 27...
Bc6 {[%clk 0:00:20.3]} 28. Qc5 {[%clk 0:00:17.1]} 28... a6 {[%clk 0:00:20.1]}
29. Qd6 {[%clk 0:00:16.1]} 29... Qd8 {[%clk 0:00:18.5]} 30. Qc5 {[%clk
0:00:12.2]} 30... Qe7 {[%clk 0:00:18.9]} 31. Qb6 {[%clk 0:00:10.6]} 31... f6
{[%clk 0:00:18.7]} 32. a4 {[%clk 0:00:08.5]} 32... g5 {[%clk 0:00:18.6]} 33.
exf6 {[%clk 0:00:07.7]} 33... Qxf6 {[%clk 0:00:18.6]} 34. fxg5 {[%clk
0:00:06.7]} 34... Qxg5+ {[%clk 0:00:19.1]} 35. Kd3 {[%clk 0:00:06.9]} 35... Qf5+
{[%clk 0:00:16.6]} 36. Kd2 {[%clk 0:00:06.8]} 36... e5 {[%clk 0:00:14]} 37. dxe5
{[%clk 0:00:06]} 37... Qxe5 {[%clk 0:00:14.9]} 38. Qg1 {[%clk 0:00:05.4]} 38...
Qb2+ {[%clk 0:00:12.7]} 39. Ke1 {[%clk 0:00:03.8]} 39... Qb1+ {[%clk 0:00:11.4]}
40. Kf2 {[%clk 0:00:03.5]} 40... Qxg1+ {[%clk 0:00:11.6]} 41. Kxg1 {[%clk
0:00:03.5]} 41... Kd7 {[%clk 0:00:12.1]} 42. Kf2 {[%clk 0:00:04.1]} 42... Kd6
{[%clk 0:00:12.8]} 43. Ke3 {[%clk 0:00:04.6]} 43... Kc5 {[%clk 0:00:13.5]} 44.
Kd3 {[%clk 0:00:01.3]} 44... Kb4 {[%clk 0:00:13.7]} 45. Kc2 {[%clk 0:00:01.2]}
45... Bd7 {[%clk 0:00:13.2]} 0-1

[Event "*** Titled Tuesday Blitz"]
[Site "Chess.com"]
[Date "2020.04.21"]
[Round "4"]
[White "Camels1981"]
[Black "dey2580"]
[Result "1-0"]
[WhiteElo "2083"]
[BlackElo "2455"]
[TimeControl "180+1"]
[EndTime "10:40:39 PDT"]
[Termination "Camels1981 won on time"]

1. e4 {[%clk 0:03:00.9]} 1... c5 {[%clk 0:02:58.4]} 2. Nf3 {[%clk 0:02:59.7]}
2... e6 {[%clk 0:02:59.3]} 3. Nc3 {[%clk 0:02:58.1]} 3... Nc6 {[%clk 0:02:58.3]}
4. d4 {[%clk 0:02:57.5]} 4... cxd4 {[%clk 0:02:58.1]} 5. Nxd4 {[%clk 0:02:56.9]}
5... Qc7 {[%clk 0:02:58.6]} 6. Be3 {[%clk 0:02:55.9]} 6... a6 {[%clk 0:02:57.3]}
7. Qd2 {[%clk 0:02:55.4]} 7... Nf6 {[%clk 0:02:56.1]} 8. O-O-O {[%clk
0:02:55.3]} 8... b5 {[%clk 0:02:40.8]} 9. Nb3 {[%clk 0:02:52.2]} 9... Ne5 {[%clk
0:02:35.2]} 10. Bf4 {[%clk 0:02:34.6]} 10... Nh5 {[%clk 0:02:19.8]} 11. Bxe5
{[%clk 0:02:31.7]} 11... Qxe5 {[%clk 0:02:18.8]} 12. g3 {[%clk 0:02:28.5]} 12...
b4 {[%clk 0:02:10.6]} 13. Na4 {[%clk 0:02:24.8]} 13... Rb8 {[%clk 0:01:34.3]}
14. Bxa6 {[%clk 0:01:41.9]} 14... Nf6 {[%clk 0:01:20.5]} 15. Bd3 {[%clk
0:01:41.7]} 15... Qc7 {[%clk 0:00:53.3]} 16. Nd4 {[%clk 0:01:19.7]} 16... Qa7
{[%clk 0:00:44]} 17. Bb5 {[%clk 0:01:08.8]} 17... Rxb5 {[%clk 0:00:42.7]} 18.
Nxb5 {[%clk 0:01:07]} 18... Qxa4 {[%clk 0:00:42.1]} 19. Nd6+ {[%clk 0:00:57.6]}
19... Bxd6 {[%clk 0:00:40.9]} 20. Qxd6 {[%clk 0:00:57]} 20... Nxe4 {[%clk
0:00:38.8]} 21. Qd4 {[%clk 0:00:47.5]} 21... Nf6 {[%clk 0:00:24.3]} 22. Qc5
{[%clk 0:00:46.2]} 22... Bb7 {[%clk 0:00:20.9]} 23. Rhe1 {[%clk 0:00:36.8]}
23... Qxa2 {[%clk 0:00:17.1]} 24. Qxb4 {[%clk 0:00:34.9]} 24... Qa1+ {[%clk
0:00:15.8]} 25. Kd2 {[%clk 0:00:34.7]} 25... Qa7 {[%clk 0:00:16.1]} 26. Kc1
{[%clk 0:00:29.6]} 26... Nd5 {[%clk 0:00:14.9]} 27. Qd6 {[%clk 0:00:27.9]} 27...
Qa1+ {[%clk 0:00:13.7]} 28. Kd2 {[%clk 0:00:27.4]} 28... Qa5+ {[%clk 0:00:14.2]}
29. c3 {[%clk 0:00:25.4]} 29... Qd8 {[%clk 0:00:11]} 30. Kc1 {[%clk 0:00:24.6]}
30... f6 {[%clk 0:00:09.1]} 31. Rxd5 {[%clk 0:00:23.3]} 31... Bxd5 {[%clk
0:00:09.1]} 32. Qxd5 {[%clk 0:00:23.4]} 32... Kf7 {[%clk 0:00:09.8]} 33. Qh5+
{[%clk 0:00:22.9]} 33... g6 {[%clk 0:00:09]} 34. Qh6 {[%clk 0:00:23.3]} 34...
Qa5 {[%clk 0:00:08.4]} 35. Kb1 {[%clk 0:00:22.4]} 35... Qf5+ {[%clk 0:00:06.3]}
36. Kc1 {[%clk 0:00:20.6]} 36... Qxf2 {[%clk 0:00:05.7]} 37. Rd1 {[%clk
0:00:18.6]} 37... d5 {[%clk 0:00:04.8]} 38. Qh4 {[%clk 0:00:16.5]} 38... h5
{[%clk 0:00:02.3]} 39. Rd2 {[%clk 0:00:13.2]} 39... Qg1+ {[%clk 0:00:01.4]} 40.
Kc2 {[%clk 0:00:12.8]} 1-0

[Event "*** Titled Tuesday Blitz"]
[Site "Chess.com"]
[Date "2020.04.21"]
[Round "4"]
[White "Salem-AR"]
[Black "Matibar"]
[Result "1-0"]
[WhiteElo "3002"]
[BlackElo "2777"]
[TimeControl "180+1"]
[EndTime "10:40:40 PDT"]
[Termination "Salem-AR won by resignation"]

1. d4 {[%clk 0:03:00.9]} 1... g6 {[%clk 0:02:41.1]} 2. e4 {[%clk 0:03:00.2]}
2... Bg7 {[%clk 0:02:41.4]} 3. Nf3 {[%clk 0:03:00.9]} 3... d6 {[%clk 0:02:41.4]}
4. Bd3 {[%clk 0:03:01.1]} 4... Nc6 {[%clk 0:02:39.3]} 5. c3 {[%clk 0:03:00.8]}
5... e5 {[%clk 0:02:39]} 6. O-O {[%clk 0:03:01.5]} 6... Bg4 {[%clk 0:02:37.5]}
7. d5 {[%clk 0:02:56.2]} 7... Nce7 {[%clk 0:02:37.5]} 8. h3 {[%clk 0:02:53.2]}
8... Bd7 {[%clk 0:02:36.4]} 9. c4 {[%clk 0:02:52]} 9... h5 {[%clk 0:02:33]} 10.
c5 {[%clk 0:02:43]} 10... dxc5 {[%clk 0:02:29.3]} 11. b4 {[%clk 0:02:39.4]}
11... cxb4 {[%clk 0:02:27.4]} 12. Bb2 {[%clk 0:02:27.8]} 12... f6 {[%clk
0:02:24.9]} 13. a3 {[%clk 0:02:23.7]} 13... a5 {[%clk 0:02:22.1]} 14. Nbd2
{[%clk 0:01:48.9]} 14... Nh6 {[%clk 0:02:06.5]} 15. axb4 {[%clk 0:01:48.7]}
15... axb4 {[%clk 0:02:06.4]} 16. Qb3 {[%clk 0:01:49.3]} 16... Rxa1 {[%clk
0:02:01.9]} 17. Rxa1 {[%clk 0:01:48.5]} 17... Nf7 {[%clk 0:02:02.8]} 18. Qxb4
{[%clk 0:01:48.6]} 18... b6 {[%clk 0:01:55.1]} 19. Ba3 {[%clk 0:01:43.9]} 19...
Nd6 {[%clk 0:01:50.5]} 20. Nc4 {[%clk 0:01:41.5]} 20... Nec8 {[%clk 0:01:50.6]}
21. Nh4 {[%clk 0:01:41.8]} 21... Kf7 {[%clk 0:01:48.5]} 22. f4 {[%clk
0:01:08.4]} 22... Qe8 {[%clk 0:01:26.2]} 23. fxe5 {[%clk 0:00:29.8]} 23... fxe5
{[%clk 0:01:27.1]} 24. Nf3 {[%clk 0:00:30.2]} 24... Kg8 {[%clk 0:01:25.8]} 25.
Bb2 {[%clk 0:00:30.1]} 25... Nf7 {[%clk 0:01:25.8]} 26. Qe1 {[%clk 0:00:24.1]}
26... b5 {[%clk 0:01:22.3]} 27. Na5 {[%clk 0:00:17.8]} 27... Ncd6 {[%clk
0:01:20.2]} 28. Rc1 {[%clk 0:00:18.3]} 28... Qd8 {[%clk 0:01:18.1]} 29. Qg3
{[%clk 0:00:18.2]} 29... h4 {[%clk 0:01:13.9]} 30. Qe1 {[%clk 0:00:14.7]} 30...
Rh5 {[%clk 0:01:07.9]} 31. Nb7 {[%clk 0:00:14]} 31... Nxb7 {[%clk 0:01:07.4]}
32. Rc2 {[%clk 0:00:08.8]} 32... c5 {[%clk 0:00:56.2]} 33. dxc6 {[%clk
0:00:06.2]} 33... Bxc6 {[%clk 0:00:56.5]} 34. Rxc6 {[%clk 0:00:06]} 34... Qxd3
{[%clk 0:00:56.4]} 35. Rxg6 {[%clk 0:00:06.2]} 35... Nbd6 {[%clk 0:00:54]} 36.
Rg4 {[%clk 0:00:04.9]} 36... Nc4 {[%clk 0:00:52.2]} 37. Bc1 {[%clk 0:00:04.4]}
37... Nfd6 {[%clk 0:00:48.8]} 38. Nxh4 {[%clk 0:00:04.2]} 38... Kh7 {[%clk
0:00:48.3]} 39. Ng6 {[%clk 0:00:03.3]} 39... b4 {[%clk 0:00:43.1]} 40. Ne7
{[%clk 0:00:03.5]} 40... b3 {[%clk 0:00:41.2]} 41. Rh4 {[%clk 0:00:04.1]} 41...
Bf6 {[%clk 0:00:19.7]} 42. Rxh5+ {[%clk 0:00:04]} 42... Kg7 {[%clk 0:00:20.2]}
43. Nf5+ {[%clk 0:00:04.1]} 43... Nxf5 {[%clk 0:00:19.8]} 44. Rxf5 {[%clk
0:00:04.1]} 44... b2 {[%clk 0:00:20]} 45. Bxb2 {[%clk 0:00:04.5]} 45... Nxb2
{[%clk 0:00:20.4]} 46. Qf2 {[%clk 0:00:05.2]} 46... Qd6 {[%clk 0:00:19.2]} 47.
Qxb2 {[%clk 0:00:04.8]} 47... Qd1+ {[%clk 0:00:19.2]} 48. Kh2 {[%clk 0:00:04.9]}
48... Qd3 {[%clk 0:00:18.9]} 49. Qb7+ {[%clk 0:00:04.3]} 49... Kg6 {[%clk
0:00:18.9]} 50. Rf3 {[%clk 0:00:04.7]} 1-0

[Event "*** Titled Tuesday Blitz"]
[Site "Chess.com"]
[Date "2020.04.21"]
[Round "4"]
[White "Sethu0025"]
[Black "ArnaudovP"]
[Result "1-0"]
[WhiteElo "2820"]
[BlackElo "2634"]
[TimeControl "180+1"]
[EndTime "10:40:40 PDT"]
[Termination "Sethu0025 won on time"]

1. e4 {[%clk 0:03:00.9]} 1... c6 {[%clk 0:02:58.7]} 2. d4 {[%clk 0:03:01.3]}
2... d5 {[%clk 0:02:59.1]} 3. e5 {[%clk 0:03:02.2]} 3... Bf5 {[%clk 0:02:57.3]}
4. Nf3 {[%clk 0:03:02.5]} 4... e6 {[%clk 0:02:56.8]} 5. Be2 {[%clk 0:03:02.7]}
5... Ne7 {[%clk 0:02:56.1]} 6. O-O {[%clk 0:03:01.1]} 6... Ng6 {[%clk
0:02:55.8]} 7. Be3 {[%clk 0:02:56.9]} 7... Nd7 {[%clk 0:02:50.5]} 8. Nbd2 {[%clk
0:02:55.2]} 8... f6 {[%clk 0:02:50]} 9. exf6 {[%clk 0:02:50.9]} 9... Qxf6 {[%clk
0:02:49.5]} 10. h3 {[%clk 0:02:40.1]} 10... Bd6 {[%clk 0:02:47.2]} 11. g4 {[%clk
0:02:31.4]} 11... O-O {[%clk 0:02:16.4]} 12. gxf5 {[%clk 0:02:05.6]} 12... Qxf5
{[%clk 0:02:15.4]} 13. Kg2 {[%clk 0:02:05.2]} 13... Nf4+ {[%clk 0:02:12.1]} 14.
Bxf4 {[%clk 0:02:02.7]} 14... Qxf4 {[%clk 0:02:03.3]} 15. Bd3 {[%clk 0:01:34.4]}
15... e5 {[%clk 0:02:00.6]} 16. dxe5 {[%clk 0:01:26.9]} 16... Nxe5 {[%clk
0:01:58.2]} 17. Nxe5 {[%clk 0:01:26.9]} 17... Bxe5 {[%clk 0:01:34.8]} 18. Nf3
{[%clk 0:01:25.2]} 18... Bd6 {[%clk 0:01:29.9]} 19. Be2 {[%clk 0:01:04.4]} 19...
Rae8 {[%clk 0:01:24.5]} 20. Qd3 {[%clk 0:01:01.7]} 20... Re6 {[%clk 0:01:12.5]}
21. Rg1 {[%clk 0:01:01.8]} 21... Qh6 {[%clk 0:00:44]} 22. Rh1 {[%clk 0:00:51.3]}
22... Rg6+ {[%clk 0:00:21.5]} 23. Kf1 {[%clk 0:00:51.1]} 23... Rgf6 {[%clk
0:00:21]} 24. Re1 {[%clk 0:00:50]} 24... Qf4 {[%clk 0:00:19.7]} 25. Bd1 {[%clk
0:00:46]} 25... Bb4 {[%clk 0:00:18.5]} 26. c3 {[%clk 0:00:45.4]} 26... Bc5
{[%clk 0:00:17.6]} 27. b4 {[%clk 0:00:35.9]} 27... Bb6 {[%clk 0:00:16.9]} 28. a3
{[%clk 0:00:25.9]} 28... Qh6 {[%clk 0:00:14]} 29. a4 {[%clk 0:00:20.4]} 29...
Qh5 {[%clk 0:00:11.8]} 30. Kg2 {[%clk 0:00:08.9]} 30... Rg6+ {[%clk 0:00:11.1]}
31. Kf1 {[%clk 0:00:09.3]} 31... Rgf6 {[%clk 0:00:10.4]} 32. Re5 {[%clk
0:00:07.6]} 32... Qxe5 {[%clk 0:00:01.6]} 33. Nxe5 {[%clk 0:00:07.2]} 1-0

[Event "*** Titled Tuesday Blitz"]
[Site "Chess.com"]
[Date "2020.04.21"]
[Round "4"]
[White "Savagelittlemole"]
[Black "Trankuilizer"]
[Result "1/2-1/2"]
[WhiteElo "2671"]
[BlackElo "2506"]
[TimeControl "180+1"]
[EndTime "10:40:41 PDT"]
[Termination "Game drawn by agreement"]

1. e4 {[%clk 0:03:00.9]} 1... e5 {[%clk 0:02:59]} 2. Ne2 {[%clk 0:03:00.4]} 2...
Nf6 {[%clk 0:02:57.6]} 3. Nbc3 {[%clk 0:02:54.3]} 3... d5 {[%clk 0:02:57.3]} 4.
exd5 {[%clk 0:02:42.7]} 4... Nxd5 {[%clk 0:02:54.9]} 5. Nxd5 {[%clk 0:02:37.3]}
5... Qxd5 {[%clk 0:02:54.8]} 6. Nc3 {[%clk 0:02:34.3]} 6... Qe6 {[%clk
0:02:55.3]} 7. Be2 {[%clk 0:02:29.1]} 7... Be7 {[%clk 0:02:47.9]} 8. O-O {[%clk
0:02:29.2]} 8... O-O {[%clk 0:02:48.4]} 9. Re1 {[%clk 0:02:24.9]} 9... Nc6
{[%clk 0:02:28.1]} 10. d3 {[%clk 0:02:13.1]} 10... Nd4 {[%clk 0:02:21.6]} 11.
Be3 {[%clk 0:02:09.6]} 11... Qd7 {[%clk 0:02:16.2]} 12. Bf1 {[%clk 0:01:55.7]}
12... Nf5 {[%clk 0:01:53.7]} 13. Bd2 {[%clk 0:01:51.5]} 13... f6 {[%clk
0:01:49.7]} 14. g3 {[%clk 0:01:49.4]} 14... c6 {[%clk 0:01:48]} 15. Bg2 {[%clk
0:01:45.3]} 15... Qc7 {[%clk 0:01:47.7]} 16. Ne4 {[%clk 0:01:42.7]} 16... Qb6
{[%clk 0:01:34.4]} 17. b3 {[%clk 0:01:32.1]} 17... Be6 {[%clk 0:01:25.5]} 18.
Kh1 {[%clk 0:01:22.5]} 18... Rae8 {[%clk 0:01:22.7]} 19. f4 {[%clk 0:01:20.2]}
19... exf4 {[%clk 0:01:11.6]} 20. Bxf4 {[%clk 0:01:21.1]} 20... Qd8 {[%clk
0:01:11.8]} 21. Qe2 {[%clk 0:01:17]} 21... Nd4 {[%clk 0:01:11.4]} 22. Qf2 {[%clk
0:01:14.4]} 22... Bg4 {[%clk 0:01:06.2]} 23. h3 {[%clk 0:01:11.5]} 23... Bh5
{[%clk 0:01:05.7]} 24. g4 {[%clk 0:00:55.1]} 24... Bg6 {[%clk 0:01:01.5]} 25.
Rad1 {[%clk 0:00:54.2]} 25... Bb4 {[%clk 0:00:51.6]} 26. c3 {[%clk 0:00:48.7]}
26... Bxe4 {[%clk 0:00:50.8]} 27. dxe4 {[%clk 0:00:45.3]} 27... Bxc3 {[%clk
0:00:51.2]} 28. Re3 {[%clk 0:00:42.8]} 28... Ba5 {[%clk 0:00:32.3]} 29. Red3
{[%clk 0:00:39.3]} 29... c5 {[%clk 0:00:32.4]} 30. Be3 {[%clk 0:00:37.3]} 30...
Qe7 {[%clk 0:00:26.6]} 31. Bxd4 {[%clk 0:00:34.2]} 31... cxd4 {[%clk 0:00:26.7]}
32. Qxd4 {[%clk 0:00:31]} 32... Bb6 {[%clk 0:00:27.2]} 33. Qd7 {[%clk
0:00:28.9]} 33... Kh8 {[%clk 0:00:27.2]} 34. Qxe7 {[%clk 0:00:26.3]} 34... Rxe7
{[%clk 0:00:27.4]} 35. Rd7 {[%clk 0:00:25.9]} 35... Rfe8 {[%clk 0:00:26.7]} 36.
Bf1 {[%clk 0:00:22.4]} 36... g6 {[%clk 0:00:24.6]} 37. Bc4 {[%clk 0:00:19.6]}
37... Kg7 {[%clk 0:00:24.6]} 38. Kg2 {[%clk 0:00:17.2]} 38... Kf8 {[%clk
0:00:23.8]} 39. Kf3 {[%clk 0:00:15.4]} 39... Rxd7 {[%clk 0:00:23.7]} 40. Rxd7
{[%clk 0:00:14]} 40... Re7 {[%clk 0:00:24.6]} 41. Rxe7 {[%clk 0:00:13.8]} 41...
Kxe7 {[%clk 0:00:24.6]} 42. h4 {[%clk 0:00:13.6]} 42... Kd6 {[%clk 0:00:22.7]}
43. Bg8 {[%clk 0:00:12.6]} 43... h6 {[%clk 0:00:22.6]} 44. g5 {[%clk 0:00:12]}
44... fxg5 {[%clk 0:00:13.6]} 45. hxg5 {[%clk 0:00:11.8]} 45... hxg5 {[%clk
0:00:14.5]} 46. Kg4 {[%clk 0:00:11.7]} 46... Be3 {[%clk 0:00:14.2]} 47. Bf7
{[%clk 0:00:10.7]} 47... Ke5 {[%clk 0:00:14.5]} 48. Bxg6 {[%clk 0:00:11]} 48...
b5 {[%clk 0:00:14.9]} 49. Bh7 {[%clk 0:00:10.4]} 49... b4 {[%clk 0:00:15.1]} 50.
Kf3 {[%clk 0:00:10.3]} 50... a5 {[%clk 0:00:15.4]} 51. Kg4 {[%clk 0:00:10.3]}
51... Bf4 {[%clk 0:00:15.2]} 52. Kf3 {[%clk 0:00:10.5]} 52... Bc1 {[%clk
0:00:13.6]} 1/2-1/2

[Event "*** Titled Tuesday Blitz"]
[Site "Chess.com"]
[Date "2020.04.21"]
[Round "4"]
[White "Dr-Bassem"]
[Black "MPGM"]
[Result "1-0"]
[WhiteElo "2796"]
[BlackElo "2550"]
[TimeControl "180+1"]
[EndTime "10:40:42 PDT"]
[Termination "Dr-Bassem won on time"]

1. e4 {[%clk 0:03:00.9]} 1... e5 {[%clk 0:02:56.1]} 2. Nf3 {[%clk 0:03:00.5]}
2... Nc6 {[%clk 0:02:55.9]} 3. Bc4 {[%clk 0:02:58.4]} 3... Bc5 {[%clk
0:02:53.9]} 4. O-O {[%clk 0:02:51.9]} 4... Nf6 {[%clk 0:02:52.9]} 5. d3 {[%clk
0:02:52.5]} 5... d6 {[%clk 0:02:49]} 6. c3 {[%clk 0:02:51.7]} 6... a6 {[%clk
0:02:48.6]} 7. Re1 {[%clk 0:02:49.6]} 7... Ba7 {[%clk 0:02:46.6]} 8. Bb3 {[%clk
0:02:48.4]} 8... O-O {[%clk 0:02:41.9]} 9. h3 {[%clk 0:02:46.1]} 9... h6 {[%clk
0:02:41]} 10. Nbd2 {[%clk 0:02:46.5]} 10... Re8 {[%clk 0:02:39.7]} 11. Nf1
{[%clk 0:02:46.8]} 11... Be6 {[%clk 0:02:39.5]} 12. Ng3 {[%clk 0:02:47.3]} 12...
d5 {[%clk 0:02:32]} 13. exd5 {[%clk 0:02:48.2]} 13... Bxd5 {[%clk 0:02:31.8]}
14. Bc2 {[%clk 0:02:48.8]} 14... Qd7 {[%clk 0:02:17]} 15. Nh4 {[%clk 0:02:32.4]}
15... Be6 {[%clk 0:01:55.4]} 16. Qf3 {[%clk 0:02:30.3]} 16... Bd5 {[%clk
0:01:49.3]} 17. Ne4 {[%clk 0:02:23.5]} 17... Nxe4 {[%clk 0:01:45.6]} 18. dxe4
{[%clk 0:02:24.4]} 18... Be6 {[%clk 0:01:44.9]} 19. Nf5 {[%clk 0:02:18.8]} 19...
Ne7 {[%clk 0:01:13.4]} 20. h4 {[%clk 0:01:26]} 20... Nxf5 {[%clk 0:00:46.3]} 21.
exf5 {[%clk 0:01:24]} 21... Bd5 {[%clk 0:00:46.7]} 22. Qg3 {[%clk 0:01:11.6]}
22... Qc6 {[%clk 0:00:43]} 23. Be3 {[%clk 0:00:51.7]} 23... Bxe3 {[%clk
0:00:37.3]} 24. Rxe3 {[%clk 0:00:52.6]} 24... Qf6 {[%clk 0:00:34.7]} 25. Rae1
{[%clk 0:00:44.4]} 25... e4 {[%clk 0:00:30.2]} 26. f3 {[%clk 0:00:23.2]} 26...
Re5 {[%clk 0:00:08.2]} 27. b3 {[%clk 0:00:16.1]} 27... Rae8 {[%clk 0:00:07]} 28.
fxe4 {[%clk 0:00:15.9]} 28... Bc6 {[%clk 0:00:05.3]} 29. Qf4 {[%clk 0:00:16]}
29... Qd6 {[%clk 0:00:04.3]} 30. g3 {[%clk 0:00:14.3]} 30... Qf6 {[%clk
0:00:03.2]} 31. Kh2 {[%clk 0:00:13.8]} 31... Kh8 {[%clk 0:00:02.9]} 32. Kh3
{[%clk 0:00:13.9]} 32... Kh7 {[%clk 0:00:02.7]} 33. g4 {[%clk 0:00:13.6]} 33...
Qd6 {[%clk 0:00:02.4]} 34. R1e2 {[%clk 0:00:08.9]} 34... Rxe4 {[%clk 0:00:01.1]}
35. Rxe4 {[%clk 0:00:03.8]} 35... Qxf4 {[%clk 0:00:02]} 36. Rxf4 {[%clk
0:00:04]} 36... Rxe2 {[%clk 0:00:02.8]} 37. Bb1 {[%clk 0:00:02.2]} 37... Re3+
{[%clk 0:00:03]} 38. Kh2 {[%clk 0:00:01.3]} 38... Rxc3 {[%clk 0:00:03.4]} 39.
f6+ {[%clk 0:00:01.9]} 39... g6 {[%clk 0:00:02.8]} 40. h5 {[%clk 0:00:02.5]}
40... Rc1 {[%clk 0:00:02.3]} 41. hxg6+ {[%clk 0:00:02.3]} 41... Kg8 {[%clk
0:00:02.6]} 42. gxf7+ {[%clk 0:00:02.2]} 42... Kxf7 {[%clk 0:00:03.5]} 43. Bg6+
{[%clk 0:00:02.2]} 43... Kf8 {[%clk 0:00:02.4]} 44. Rd4 {[%clk 0:00:02.5]} 1-0